[Event "*** Titled Tuesday Blitz"]
[Site "Chess.com"]
[Date "2020.04.14"]
[Round "3"]
[White "codapbg94"]
[Black "BrianEscalante"]
[Result "0-1"]
[WhiteElo "2033"]
[BlackElo "2505"]
[TimeControl "180+1"]
[EndTime "10:29:00 PDT"]
[Termination "BrianEscalante won by resignation"]

1. e4 {[%clk 0:03:00.9]} 1... e6 {[%clk 0:02:57.6]} 2. Qe2 {[%clk 0:02:59.7]}
2... Ne7 {[%clk 0:02:56.7]} 3. Nf3 {[%clk 0:02:58.6]} 3... d5 {[%clk 0:02:55.3]}
4. d3 {[%clk 0:02:56.7]} 4... c5 {[%clk 0:02:55]} 5. g3 {[%clk 0:02:56.1]} 5...
Nbc6 {[%clk 0:02:55.2]} 6. Bg2 {[%clk 0:02:56.4]} 6... g6 {[%clk 0:02:55.7]} 7.
O-O {[%clk 0:02:54.4]} 7... Bg7 {[%clk 0:02:56.2]} 8. c3 {[%clk 0:02:53.5]} 8...
h6 {[%clk 0:02:09.8]} 9. Na3 {[%clk 0:02:44.3]} 9... b6 {[%clk 0:01:54]} 10. e5
{[%clk 0:02:43.5]} 10... Ba6 {[%clk 0:01:48]} 11. h4 {[%clk 0:02:42.2]} 11...
Qc7 {[%clk 0:01:36.1]} 12. Re1 {[%clk 0:02:41]} 12... O-O {[%clk 0:01:10.7]} 13.
Bf4 {[%clk 0:02:39.9]} 13... Qd7 {[%clk 0:01:09.9]} 14. Nc2 {[%clk 0:02:33.3]}
14... f6 {[%clk 0:01:07.7]} 15. exf6 {[%clk 0:02:25.8]} 15... Rxf6 {[%clk
0:01:08.6]} 16. Ne5 {[%clk 0:02:23.5]} 16... Qb7 {[%clk 0:00:52.9]} 17. Ne3
{[%clk 0:02:10.6]} 17... Rxf4 {[%clk 0:00:49.3]} 18. gxf4 {[%clk 0:02:09.3]}
18... Rf8 {[%clk 0:00:27]} 19. N3g4 {[%clk 0:01:58.4]} 19... Rxf4 {[%clk
0:00:25.8]} 20. Nxc6 {[%clk 0:01:54.4]} 20... Qxc6 {[%clk 0:00:25.9]} 21. Ne5
{[%clk 0:01:29]} 21... Qd6 {[%clk 0:00:22.4]} 22. Nf3 {[%clk 0:01:24.1]} 22...
Bc8 {[%clk 0:00:19.7]} 23. Bh3 {[%clk 0:01:22.2]} 23... Nf5 {[%clk 0:00:19.4]}
24. Ne5 {[%clk 0:01:17.8]} 24... Rxh4 {[%clk 0:00:16.4]} 25. Kg2 {[%clk
0:01:15.2]} 25... g5 {[%clk 0:00:12.4]} 26. Ng6 {[%clk 0:01:07.2]} 26... g4
{[%clk 0:00:12.7]} 27. Nxh4 {[%clk 0:00:52.9]} 27... Nxh4+ {[%clk 0:00:12.9]}
28. Kh1 {[%clk 0:00:53]} 28... Nf3 {[%clk 0:00:10.4]} 29. Qxf3 {[%clk
0:00:40.8]} 29... gxf3 {[%clk 0:00:11.3]} 30. Re3 {[%clk 0:00:39.3]} 30... Qf4
{[%clk 0:00:09.7]} 31. Rae1 {[%clk 0:00:39.1]} 31... Qh4 {[%clk 0:00:05.2]} 32.
Rxf3 {[%clk 0:00:38.7]} 32... e5 {[%clk 0:00:05.4]} 33. Kg2 {[%clk 0:00:36.9]}
33... Bxh3+ {[%clk 0:00:02.6]} 34. Rxh3 {[%clk 0:00:37.8]} 34... Qg5+ {[%clk
0:00:02.2]} 35. Rg3 {[%clk 0:00:38.7]} 35... Qd2 {[%clk 0:00:02.5]} 36. Rg1
{[%clk 0:00:39.2]} 36... Kh7 {[%clk 0:00:02.2]} 37. Kh1 {[%clk 0:00:40]} 37...
Bf6 {[%clk 0:00:02.2]} 38. Rg6 {[%clk 0:00:39.9]} 38... Qf4 {[%clk 0:00:02.4]}
39. R1g2 {[%clk 0:00:39]} 39... Qf3 {[%clk 0:00:02.8]} 40. Rg8 {[%clk
0:00:38.3]} 40... Qh5+ {[%clk 0:00:02.4]} 41. Kg1 {[%clk 0:00:37.1]} 41... Qd1+
{[%clk 0:00:03.1]} 42. Kh2 {[%clk 0:00:34.2]} 42... Qxd3 {[%clk 0:00:04]} 43.
Ra8 {[%clk 0:00:31.8]} 43... Qa6 {[%clk 0:00:02.8]} 44. Rf8 {[%clk 0:00:26.2]}
44... Bg5 {[%clk 0:00:03.3]} 45. Rf7+ {[%clk 0:00:20.6]} 45... Kg6 {[%clk
0:00:03.4]} 46. Rd7 {[%clk 0:00:20.9]} 46... Qxa2 {[%clk 0:00:03.6]} 47. Rd6+
{[%clk 0:00:19.1]} 47... Kf5 {[%clk 0:00:04.1]} 48. Rg3 {[%clk 0:00:18.8]} 48...
Qxb2 {[%clk 0:00:04.1]} 49. Rf3+ {[%clk 0:00:19]} 49... Ke4 {[%clk 0:00:03.4]}
50. Re3+ {[%clk 0:00:19.2]} 50... Bxe3 {[%clk 0:00:02.8]} 0-1

[Event "*** Titled Tuesday Blitz"]
[Site "Chess.com"]
[Date "2020.04.14"]
[Round "3"]
[White "isla88"]
[Black "Etoilegeniale"]
[Result "0-1"]
[WhiteElo "2283"]
[BlackElo "2511"]
[TimeControl "180+1"]
[EndTime "10:29:00 PDT"]
[Termination "Etoilegeniale won by resignation"]

1. c4 {[%clk 0:03:00.9]} 1... Nf6 {[%clk 0:02:58.1]} 2. Nc3 {[%clk 0:03:00.9]}
2... e5 {[%clk 0:02:52.5]} 3. Nf3 {[%clk 0:02:59.6]} 3... Nc6 {[%clk 0:02:52.5]}
4. e3 {[%clk 0:02:58.9]} 4... Bb4 {[%clk 0:02:46.7]} 5. Qc2 {[%clk 0:02:58.6]}
5... O-O {[%clk 0:02:39.9]} 6. Nd5 {[%clk 0:02:57]} 6... Re8 {[%clk 0:02:38.1]}
7. Qf5 {[%clk 0:02:54.9]} 7... d6 {[%clk 0:01:39.9]} 8. Nxf6+ {[%clk 0:02:53.6]}
8... Qxf6 {[%clk 0:01:39.2]} 9. Qxf6 {[%clk 0:02:53.4]} 9... gxf6 {[%clk
0:01:39.3]} 10. a3 {[%clk 0:02:53.7]} 10... Bc5 {[%clk 0:01:38]} 11. b4 {[%clk
0:02:53.2]} 11... Bb6 {[%clk 0:01:37.9]} 12. Bb2 {[%clk 0:02:53.3]} 12... f5
{[%clk 0:01:37.7]} 13. b5 {[%clk 0:02:48.9]} 13... Na5 {[%clk 0:01:31.6]} 14. d4
{[%clk 0:02:21.4]} 14... Nb3 {[%clk 0:01:30.9]} 15. Rd1 {[%clk 0:02:20.9]} 15...
Ba5+ {[%clk 0:01:26.7]} 16. Ke2 {[%clk 0:02:16.4]} 16... exd4 {[%clk 0:01:11]}
17. Nxd4 {[%clk 0:02:05.9]} 17... Nc5 {[%clk 0:01:10.1]} 18. g3 {[%clk
0:01:43.4]} 18... Na4 {[%clk 0:00:59.5]} 19. Ba1 {[%clk 0:01:39.8]} 19... Nc3+
{[%clk 0:00:59.3]} 20. Bxc3 {[%clk 0:01:38.8]} 20... Bxc3 {[%clk 0:00:59.1]} 21.
Kd3 {[%clk 0:01:36.1]} 21... Bxd4 {[%clk 0:00:43.4]} 22. exd4 {[%clk 0:01:34.1]}
22... f4 {[%clk 0:00:42.7]} 23. gxf4 {[%clk 0:01:29]} 23... Bf5+ {[%clk
0:00:42.6]} 24. Kc3 {[%clk 0:01:29.1]} 24... a6 {[%clk 0:00:41.5]} 25. Kb4
{[%clk 0:01:16.6]} 25... axb5 {[%clk 0:00:40.6]} 26. cxb5 {[%clk 0:01:17.5]}
26... Bc2 {[%clk 0:00:35.2]} 27. Rc1 {[%clk 0:01:11.6]} 27... Ra4+ {[%clk
0:00:35]} 28. Kc3 {[%clk 0:01:11.7]} 28... Be4 {[%clk 0:00:33.9]} 29. Rg1+
{[%clk 0:01:10.4]} 29... Kf8 {[%clk 0:00:33.9]} 30. Kb3 {[%clk 0:01:00.2]} 30...
Rea8 {[%clk 0:00:32.9]} 31. Bc4 {[%clk 0:00:54.8]} 31... Rxa3+ {[%clk 0:00:31]}
32. Kb2 {[%clk 0:00:55.1]} 32... Rf3 {[%clk 0:00:26.7]} 33. Rge1 {[%clk
0:00:31]} 33... Rxf2+ {[%clk 0:00:25.4]} 34. Kb3 {[%clk 0:00:30]} 34... d5
{[%clk 0:00:25.1]} 35. Re2 {[%clk 0:00:23.7]} 35... Rf3+ {[%clk 0:00:23.9]} 36.
Kb4 {[%clk 0:00:19.7]} 36... Rxf4 {[%clk 0:00:22.2]} 37. Bb3 {[%clk 0:00:17.4]}
37... Rc8 {[%clk 0:00:20]} 38. Rc5 {[%clk 0:00:16.5]} 38... c6 {[%clk
0:00:18.4]} 39. bxc6 {[%clk 0:00:16.3]} 39... bxc6 {[%clk 0:00:18.3]} 40. Ba4
{[%clk 0:00:16.4]} 40... Ke7 {[%clk 0:00:17.1]} 41. Rxc6 {[%clk 0:00:15.6]}
41... Rxc6 {[%clk 0:00:16.3]} 42. Bxc6 {[%clk 0:00:16.5]} 42... Kd6 {[%clk
0:00:16.6]} 43. Be8 {[%clk 0:00:15.9]} 43... f5 {[%clk 0:00:16.1]} 44. Re1
{[%clk 0:00:13.2]} 44... Rf2 {[%clk 0:00:14.9]} 45. h4 {[%clk 0:00:11.8]} 45...
f4 {[%clk 0:00:14.5]} 46. Rc1 {[%clk 0:00:11.4]} 46... f3 {[%clk 0:00:14.4]} 47.
Rc6+ {[%clk 0:00:11.3]} 47... Ke7 {[%clk 0:00:14.6]} 48. Bh5 {[%clk 0:00:11.4]}
48... Rb2+ {[%clk 0:00:14.1]} 49. Ka3 {[%clk 0:00:11.5]} 49... Rd2 {[%clk
0:00:13.1]} 50. Rc7+ {[%clk 0:00:11.3]} 50... Kf6 {[%clk 0:00:12.6]} 51. Rf7+
{[%clk 0:00:11.2]} 51... Ke6 {[%clk 0:00:11.8]} 52. Rf8 {[%clk 0:00:11.3]} 52...
f2 {[%clk 0:00:10.7]} 53. Bg4+ {[%clk 0:00:11.5]} 53... Ke7 {[%clk 0:00:09.8]}
54. Kb4 {[%clk 0:00:11.6]} 54... Kxf8 {[%clk 0:00:08.7]} 0-1

[Event "*** Titled Tuesday Blitz"]
[Site "Chess.com"]
[Date "2020.04.14"]
[Round "3"]
[White "maxip32"]
[Black "Koksik_13"]
[Result "0-1"]
[WhiteElo "2422"]
[BlackElo "2692"]
[TimeControl "180+1"]
[EndTime "10:29:01 PDT"]
[Termination "Koksik_13 won on time"]

1. e4 {[%clk 0:02:59.4]} 1... e6 {[%clk 0:02:57.7]} 2. d3 {[%clk 0:02:58.1]}
2... d5 {[%clk 0:02:58.6]} 3. Nd2 {[%clk 0:02:52.9]} 3... Nf6 {[%clk 0:02:58.5]}
4. Ngf3 {[%clk 0:02:52.5]} 4... b6 {[%clk 0:02:58.5]} 5. g3 {[%clk 0:02:35.3]}
5... Bb7 {[%clk 0:02:58.1]} 6. exd5 {[%clk 0:02:12]} 6... Bxd5 {[%clk
0:02:54.4]} 7. Bg2 {[%clk 0:02:09.2]} 7... Nbd7 {[%clk 0:02:54]} 8. O-O {[%clk
0:02:08.9]} 8... Be7 {[%clk 0:02:53.6]} 9. c4 {[%clk 0:02:07.8]} 9... Bb7 {[%clk
0:02:52.7]} 10. d4 {[%clk 0:02:07.6]} 10... O-O {[%clk 0:02:52.3]} 11. b3 {[%clk
0:02:03.8]} 11... c5 {[%clk 0:02:52.1]} 12. Bb2 {[%clk 0:02:03.5]} 12... Qc7
{[%clk 0:02:51.3]} 13. Qe2 {[%clk 0:01:55]} 13... Rad8 {[%clk 0:02:41.2]} 14.
Rad1 {[%clk 0:01:52.3]} 14... cxd4 {[%clk 0:02:32.3]} 15. Nxd4 {[%clk
0:01:51.4]} 15... Bxg2 {[%clk 0:02:31.4]} 16. Kxg2 {[%clk 0:01:52.3]} 16... Qb7+
{[%clk 0:02:31.8]} 17. Qf3 {[%clk 0:01:51.5]} 17... Qxf3+ {[%clk 0:02:31.5]} 18.
N2xf3 {[%clk 0:01:52.4]} 18... Rc8 {[%clk 0:02:23.6]} 19. Rfe1 {[%clk
0:01:48.7]} 19... a6 {[%clk 0:02:19.1]} 20. h3 {[%clk 0:01:25.8]} 20... h6
{[%clk 0:02:14.6]} 21. a3 {[%clk 0:01:12.3]} 21... Nc5 {[%clk 0:02:11.1]} 22.
Ba1 {[%clk 0:01:00.4]} 22... Rfd8 {[%clk 0:02:09.2]} 23. b4 {[%clk 0:00:58.2]}
23... Na4 {[%clk 0:02:09]} 24. Rc1 {[%clk 0:00:58.1]} 24... Nd7 {[%clk
0:02:02.7]} 25. Nf5 {[%clk 0:00:45.2]} 25... Bf8 {[%clk 0:02:01.7]} 26. N5d4
{[%clk 0:00:39.3]} 26... Be7 {[%clk 0:02:01.6]} 27. Nf5 {[%clk 0:00:21.7]} 27...
Bf8 {[%clk 0:02:01.6]} 28. N5d4 {[%clk 0:00:21.8]} 28... g6 {[%clk 0:02:01.9]}
29. Red1 {[%clk 0:00:14]} 29... Bg7 {[%clk 0:02:01.7]} 30. Rc2 {[%clk
0:00:04.7]} 30... Nf6 {[%clk 0:01:58.8]} 31. Rdc1 {[%clk 0:00:03.3]} 31... Ne4
{[%clk 0:01:58.1]} 32. b5 {[%clk 0:00:02.5]} 32... a5 {[%clk 0:01:54.1]} 33. Nc6
{[%clk 0:00:02.3]} 33... Rd7 {[%clk 0:01:49.6]} 34. Bxg7 {[%clk 0:00:03.2]}
34... Kxg7 {[%clk 0:01:50.5]} 35. Nfe5 {[%clk 0:00:03.4]} 35... Rd6 {[%clk
0:01:44.1]} 36. Re2 {[%clk 0:00:02.6]} 36... Nec5 {[%clk 0:01:01.2]} 37. Rcc2
{[%clk 0:00:02.8]} 37... f6 {[%clk 0:00:54.9]} 38. Nf3 {[%clk 0:00:02.4]} 38...
Kf7 {[%clk 0:00:55.1]} 39. Rcd2 {[%clk 0:00:02.3]} 39... Rxd2 {[%clk 0:00:47.8]}
40. Rxd2 {[%clk 0:00:03.2]} 40... Rc7 {[%clk 0:00:48.7]} 41. Rd6 {[%clk
0:00:02.6]} 41... Nb7 {[%clk 0:00:41.5]} 42. Nd8+ {[%clk 0:00:01.9]} 42... Nxd8
{[%clk 0:00:40.9]} 43. Rxd8 {[%clk 0:00:02.8]} 43... Ke7 {[%clk 0:00:40.8]} 44.
Rd4 {[%clk 0:00:02.6]} 44... e5 {[%clk 0:00:40.3]} 45. Rh4 {[%clk 0:00:02.6]}
45... h5 {[%clk 0:00:39.9]} 46. g4 {[%clk 0:00:02.2]} 46... Rxc4 {[%clk
0:00:39.4]} 47. gxh5 {[%clk 0:00:01.1]} 47... Rxh4 {[%clk 0:00:40.3]} 48. Nxh4
{[%clk 0:00:01.7]} 48... gxh5 {[%clk 0:00:41.2]} 49. Nf5+ {[%clk 0:00:01.9]}
49... Ke6 {[%clk 0:00:41.5]} 50. Ng7+ {[%clk 0:00:02.1]} 50... Kf7 {[%clk
0:00:39.7]} 51. Nxh5 {[%clk 0:00:03]} 51... Nc3 {[%clk 0:00:40.2]} 52. Ng3
{[%clk 0:00:01.8]} 52... Nxb5 {[%clk 0:00:40]} 53. Ne4 {[%clk 0:00:01.8]} 53...
Nxa3 {[%clk 0:00:39.6]} 54. h4 {[%clk 0:00:02.7]} 54... Nc2 {[%clk 0:00:38.8]}
55. Kf3 {[%clk 0:00:01.4]} 55... a4 {[%clk 0:00:38.8]} 56. Nc3 {[%clk
0:00:01.4]} 56... a3 {[%clk 0:00:38.6]} 57. Ke2 {[%clk 0:00:01.1]} 57... b5
{[%clk 0:00:38.4]} 58. Kd3 {[%clk 0:00:01.2]} 58... b4 {[%clk 0:00:39.3]} 0-1

[Event "*** Titled Tuesday Blitz"]
[Site "Chess.com"]
[Date "2020.04.14"]
[Round "3"]
[White "fugadelafuga"]
[Black "pooh2012"]
[Result "1-0"]
[WhiteElo "2375"]
[BlackElo "2565"]
[TimeControl "180+1"]
[EndTime "10:29:01 PDT"]
[Termination "fugadelafuga won by checkmate"]

1. e4 {[%clk 0:03:00.9]} 1... c6 {[%clk 0:02:59.4]} 2. Nc3 {[%clk 0:03:00.4]}
2... d5 {[%clk 0:02:58.9]} 3. Nf3 {[%clk 0:03:00.5]} 3... Bg4 {[%clk 0:02:59.4]}
4. h3 {[%clk 0:03:00.1]} 4... Bxf3 {[%clk 0:02:59.6]} 5. Qxf3 {[%clk 0:02:59.8]}
5... e6 {[%clk 0:03:00.2]} 6. d3 {[%clk 0:03:00]} 6... Nd7 {[%clk 0:02:58.4]} 7.
Bd2 {[%clk 0:02:59.5]} 7... Ngf6 {[%clk 0:02:58]} 8. g4 {[%clk 0:02:59]} 8...
Be7 {[%clk 0:02:44]} 9. Bg2 {[%clk 0:02:53.7]} 9... Ne5 {[%clk 0:02:30.6]} 10.
Qg3 {[%clk 0:02:39.3]} 10... Ng6 {[%clk 0:02:27.1]} 11. f4 {[%clk 0:02:34.3]}
11... Nxe4 {[%clk 0:02:24.9]} 12. Qf3 {[%clk 0:02:28]} 12... Bh4+ {[%clk
0:02:20.9]} 13. Kd1 {[%clk 0:02:24.3]} 13... Nf2+ {[%clk 0:02:19.5]} 14. Kc1
{[%clk 0:02:18.7]} 14... Nxh1 {[%clk 0:02:18]} 15. Bxh1 {[%clk 0:02:19.3]} 15...
Qb6 {[%clk 0:02:06.1]} 16. a4 {[%clk 0:02:11]} 16... Qf2 {[%clk 0:01:47.2]} 17.
Ne2 {[%clk 0:02:05.3]} 17... Qxf3 {[%clk 0:01:35.5]} 18. Bxf3 {[%clk 0:02:06.2]}
18... a5 {[%clk 0:01:25.8]} 19. c3 {[%clk 0:02:01]} 19... e5 {[%clk 0:01:10.2]}
20. f5 {[%clk 0:01:57.5]} 20... Ne7 {[%clk 0:01:10.3]} 21. c4 {[%clk 0:01:56.4]}
21... h5 {[%clk 0:01:04]} 22. Kc2 {[%clk 0:01:53.1]} 22... hxg4 {[%clk
0:01:02.4]} 23. hxg4 {[%clk 0:01:50.6]} 23... Bf2 {[%clk 0:01:02.1]} 24. Nc3
{[%clk 0:01:47.7]} 24... O-O-O {[%clk 0:00:38.1]} 25. cxd5 {[%clk 0:01:43.7]}
25... cxd5 {[%clk 0:00:35.8]} 26. Rf1 {[%clk 0:01:43.9]} 26... Rh2 {[%clk
0:00:30.6]} 27. Rh1 {[%clk 0:01:05.2]} 27... Rdh8 {[%clk 0:00:18.4]} 28. Rxh2
{[%clk 0:01:04.2]} 28... Rxh2 {[%clk 0:00:19.3]} 29. Kd1 {[%clk 0:01:04.8]}
29... d4 {[%clk 0:00:11.7]} 30. Ne4 {[%clk 0:00:56.6]} 30... f6 {[%clk
0:00:08.8]} 31. Nd6+ {[%clk 0:00:50.7]} 31... Kc7 {[%clk 0:00:08.7]} 32. Nxb7
{[%clk 0:00:50.2]} 32... Nc6 {[%clk 0:00:08.8]} 33. Nxa5 {[%clk 0:00:46.8]}
33... Nxa5 {[%clk 0:00:05.1]} 34. Bxa5+ {[%clk 0:00:47.7]} 34... Kb8 {[%clk
0:00:05.6]} 35. b4 {[%clk 0:00:43.3]} 35... Rh3 {[%clk 0:00:04.9]} 36. Bd5
{[%clk 0:00:37.6]} 36... Be3 {[%clk 0:00:02.9]} 37. Kc2 {[%clk 0:00:34.8]} 37...
Rh2+ {[%clk 0:00:03]} 38. Kb3 {[%clk 0:00:33.6]} 38... Rd2 {[%clk 0:00:03.9]}
39. Kc4 {[%clk 0:00:29.7]} 39... Rc2+ {[%clk 0:00:04]} 40. Kb5 {[%clk
0:00:29.2]} 40... Rc3 {[%clk 0:00:04.7]} 41. Be4 {[%clk 0:00:28.4]} 41... Bd2
{[%clk 0:00:03.5]} 42. Bb6 {[%clk 0:00:26]} 42... Rb3 {[%clk 0:00:03.8]} 43. Bc5
{[%clk 0:00:26.1]} 43... Rb2 {[%clk 0:00:04.1]} 44. a5 {[%clk 0:00:25.5]} 44...
Ra2 {[%clk 0:00:04.3]} 45. Kb6 {[%clk 0:00:24.1]} 45... Rb2 {[%clk 0:00:03.2]}
46. Kb5 {[%clk 0:00:21.3]} 46... Ra2 {[%clk 0:00:03.1]} 47. Bd5 {[%clk
0:00:20.4]} 47... Ra1 {[%clk 0:00:03.5]} 48. Be6 {[%clk 0:00:18.6]} 48... Kc7
{[%clk 0:00:03.8]} 49. Bc4 {[%clk 0:00:16.3]} 49... Bc3 {[%clk 0:00:04]} 50.
Bb6+ {[%clk 0:00:16.3]} 50... Kb8 {[%clk 0:00:03.9]} 51. Bd5 {[%clk 0:00:15.3]}
51... Ra3 {[%clk 0:00:04.4]} 52. a6 {[%clk 0:00:14.7]} 52... Ra1 {[%clk
0:00:05]} 53. Bc5 {[%clk 0:00:14.8]} 53... Ra3 {[%clk 0:00:05.1]} 54. Kb6 {[%clk
0:00:13.1]} 54... Ra1 {[%clk 0:00:04.7]} 55. b5 {[%clk 0:00:13.2]} 55... Kc8
{[%clk 0:00:04.9]} 56. Be6+ {[%clk 0:00:12.9]} 56... Kb8 {[%clk 0:00:04.9]} 57.
Bd6+ {[%clk 0:00:12]} 57... Ka8 {[%clk 0:00:05.2]} 58. Bd5# {[%clk 0:00:12]} 1-0

[Event "*** Titled Tuesday Blitz"]
[Site "Chess.com"]
[Date "2020.04.14"]
[Round "3"]
[White "adriangschnitzer"]
[Black "Nikolakis2014"]
[Result "0-1"]
[WhiteElo "2386"]
[BlackElo "2688"]
[TimeControl "180+1"]
[EndTime "10:29:01 PDT"]
[Termination "Nikolakis2014 won on time"]

1. e4 {[%clk 0:03:00.9]} 1... c5 {[%clk 0:02:59.8]} 2. Nf3 {[%clk 0:03:00.5]}
2... Nc6 {[%clk 0:02:59.6]} 3. d4 {[%clk 0:03:00.7]} 3... cxd4 {[%clk
0:02:59.7]} 4. Nxd4 {[%clk 0:03:01.6]} 4... e5 {[%clk 0:02:59.9]} 5. Nb5 {[%clk
0:03:01.2]} 5... d6 {[%clk 0:03:00.1]} 6. N1c3 {[%clk 0:03:00.5]} 6... a6 {[%clk
0:02:59.5]} 7. Na3 {[%clk 0:03:01]} 7... Be6 {[%clk 0:02:59.5]} 8. Nc4 {[%clk
0:02:59.1]} 8... b5 {[%clk 0:02:58.7]} 9. Ne3 {[%clk 0:02:59.2]} 9... Nf6 {[%clk
0:02:58.9]} 10. g3 {[%clk 0:02:57.7]} 10... Be7 {[%clk 0:02:58.8]} 11. Bg2
{[%clk 0:02:57.8]} 11... O-O {[%clk 0:02:58.8]} 12. O-O {[%clk 0:02:58]} 12...
Rc8 {[%clk 0:02:57.7]} 13. Ncd5 {[%clk 0:02:58.1]} 13... b4 {[%clk 0:02:33]} 14.
c4 {[%clk 0:02:49.6]} 14... a5 {[%clk 0:02:29.3]} 15. b3 {[%clk 0:02:48.7]}
15... Nd7 {[%clk 0:02:16.5]} 16. Bb2 {[%clk 0:02:44]} 16... Nc5 {[%clk
0:02:16.5]} 17. Qd2 {[%clk 0:02:37.3]} 17... Kh8 {[%clk 0:02:15.3]} 18. Rad1
{[%clk 0:02:36.3]} 18... Bg5 {[%clk 0:02:11]} 19. f4 {[%clk 0:02:33.8]} 19...
Bh6 {[%clk 0:02:09.6]} 20. Kh1 {[%clk 0:02:24.5]} 20... exf4 {[%clk 0:02:02.5]}
21. gxf4 {[%clk 0:02:18.2]} 21... f6 {[%clk 0:02:02.2]} 22. Qe2 {[%clk
0:02:00.6]} 22... Qe8 {[%clk 0:01:52.8]} 23. Ng4 {[%clk 0:01:44.9]} 23... Bxg4
{[%clk 0:01:48.4]} 24. Qxg4 {[%clk 0:01:43.1]} 24... Nxe4 {[%clk 0:01:43.4]} 25.
Nb6 {[%clk 0:01:11.5]} 25... Rc7 {[%clk 0:01:18.5]} 26. f5 {[%clk 0:00:59.1]}
26... Nc3 {[%clk 0:01:07.8]} 27. Rxd6 {[%clk 0:00:52]} 27... Ne5 {[%clk
0:01:07]} 28. Qd4 {[%clk 0:00:42.5]} 28... Qh5 {[%clk 0:00:56.1]} 29. Bxc3
{[%clk 0:00:33.8]} 29... bxc3 {[%clk 0:00:55.1]} 30. Qxc3 {[%clk 0:00:34.7]}
30... Ng4 {[%clk 0:00:41.5]} 31. Qh3 {[%clk 0:00:30.1]} 31... Qg5 {[%clk
0:00:34.6]} 32. Qg3 {[%clk 0:00:22.6]} 32... Re7 {[%clk 0:00:25.3]} 33. h3
{[%clk 0:00:20.9]} 33... Ne3 {[%clk 0:00:24.3]} 34. Qxg5 {[%clk 0:00:21.8]}
34... Bxg5 {[%clk 0:00:18.6]} 35. Re1 {[%clk 0:00:21.9]} 35... Rfe8 {[%clk
0:00:17.4]} 36. Rd3 {[%clk 0:00:16.6]} 36... h5 {[%clk 0:00:16.1]} 37. c5 {[%clk
0:00:09.3]} 37... Nxf5 {[%clk 0:00:15.7]} 38. Rxe7 {[%clk 0:00:08.3]} 38... Rxe7
{[%clk 0:00:15.9]} 39. Kg1 {[%clk 0:00:05.8]} 39... Be3+ {[%clk 0:00:15.2]} 40.
Rxe3 {[%clk 0:00:02.6]} 40... Rxe3 {[%clk 0:00:12.8]} 41. c6 {[%clk 0:00:03.5]}
41... Re1+ {[%clk 0:00:12.9]} 42. Kf2 {[%clk 0:00:03]} 42... Rc1 {[%clk
0:00:13.4]} 43. Nc4 {[%clk 0:00:03.1]} 43... Ne7 {[%clk 0:00:12.2]} 44. c7
{[%clk 0:00:03.3]} 44... Rc2+ {[%clk 0:00:12.5]} 45. Kg3 {[%clk 0:00:02.8]}
45... Rxa2 {[%clk 0:00:12.6]} 46. Bb7 {[%clk 0:00:02.6]} 46... a4 {[%clk
0:00:12.5]} 47. Nd6 {[%clk 0:00:01.8]} 47... axb3 {[%clk 0:00:12]} 0-1

[Event "*** Titled Tuesday Blitz"]
[Site "Chess.com"]
[Date "2020.04.14"]
[Round "3"]
[White "BlackGod93"]
[Black "queen_iryna"]
[Result "0-1"]
[WhiteElo "2396"]
[BlackElo "2211"]
[TimeControl "180+1"]
[EndTime "10:29:01 PDT"]
[Termination "queen_iryna won on time"]

1. Nf3 {[%clk 0:02:58.7]} 1... d6 {[%clk 0:03:00.9]} 2. c4 {[%clk 0:02:56.3]}
2... e5 {[%clk 0:02:59.7]} 3. Nc3 {[%clk 0:02:47.5]} 3... g6 {[%clk 0:02:58.3]}
4. g3 {[%clk 0:02:46]} 4... Bg7 {[%clk 0:02:58.2]} 5. Bg2 {[%clk 0:02:45.6]}
5... f5 {[%clk 0:02:58.2]} 6. O-O {[%clk 0:02:46.1]} 6... Nf6 {[%clk 0:02:58.2]}
7. e4 {[%clk 0:02:44.5]} 7... Nc6 {[%clk 0:02:56.3]} 8. exf5 {[%clk 0:02:44.4]}
8... Bxf5 {[%clk 0:02:55.7]} 9. d4 {[%clk 0:02:45]} 9... Ke7 {[%clk 0:02:26.5]}
10. Bg5 {[%clk 0:02:41.7]} 10... Re8 {[%clk 0:02:21.8]} 11. dxe5 {[%clk
0:02:39.1]} 11... dxe5 {[%clk 0:02:21]} 12. Nd5+ {[%clk 0:02:37.6]} 12... Kf7
{[%clk 0:02:18.5]} 13. Qb3 {[%clk 0:02:31.7]} 13... Rb8 {[%clk 0:01:50.2]} 14.
Rad1 {[%clk 0:02:28.6]} 14... Qc8 {[%clk 0:01:44.1]} 15. Nh4 {[%clk 0:02:18.7]}
15... Be6 {[%clk 0:01:39.1]} 16. f4 {[%clk 0:02:18.3]} 16... Bxd5 {[%clk
0:01:31.3]} 17. cxd5 {[%clk 0:02:12.5]} 17... Nd4 {[%clk 0:01:28.9]} 18. Qc4
{[%clk 0:02:10.7]} 18... b5 {[%clk 0:01:26]} 19. Qc5 {[%clk 0:02:08.1]} 19...
Nf5 {[%clk 0:01:14.6]} 20. fxe5 {[%clk 0:02:04.3]} 20... Rxe5 {[%clk 0:01:10.4]}
21. Bh3 {[%clk 0:01:59.5]} 21... Ne4 {[%clk 0:01:04.6]} 22. Nxf5 {[%clk
0:01:37.9]} 22... gxf5 {[%clk 0:01:04]} 23. Rxf5+ {[%clk 0:01:10.3]} 23... Rxf5
{[%clk 0:01:03.2]} 24. Qe7+ {[%clk 0:01:09.9]} 24... Kg8 {[%clk 0:01:02]} 25.
Qxe4 {[%clk 0:01:10.6]} 25... Re5 {[%clk 0:00:43.7]} 26. Qxe5 {[%clk 0:00:47.8]}
26... Qxh3 {[%clk 0:00:42.7]} 27. Qxc7 {[%clk 0:00:37.3]} 27... Rf8 {[%clk
0:00:37.4]} 28. Bf4 {[%clk 0:00:32]} 28... Qg4 {[%clk 0:00:29.2]} 29. Rf1 {[%clk
0:00:30.6]} 29... Qe2 {[%clk 0:00:21.2]} 30. Qxa7 {[%clk 0:00:20.4]} 30... Qxb2
{[%clk 0:00:19.2]} 31. Kh1 {[%clk 0:00:09.4]} 31... Qe2 {[%clk 0:00:17.1]} 32.
Qf2 {[%clk 0:00:05.3]} 32... Qe4+ {[%clk 0:00:15.4]} 33. Qf3 {[%clk 0:00:05.5]}
33... Qc4 {[%clk 0:00:13.9]} 34. d6 {[%clk 0:00:03.2]} 34... Qxa2 {[%clk
0:00:13.5]} 35. d7 {[%clk 0:00:03]} 35... Qf7 {[%clk 0:00:12.5]} 36. Rd1 {[%clk
0:00:03.2]} 36... Bf6 {[%clk 0:00:10.5]} 37. Qc6 {[%clk 0:00:03.4]} 37... Bd8
{[%clk 0:00:08.9]} 38. Qc5 {[%clk 0:00:02.6]} 38... Qg6 {[%clk 0:00:07.8]} 39.
Qxb5 {[%clk 0:00:03.5]} 39... Qe4+ {[%clk 0:00:07.6]} 40. Kg1 {[%clk 0:00:03.5]}
40... Qe6 {[%clk 0:00:06.4]} 41. Qd5 {[%clk 0:00:03.3]} 41... Bb6+ {[%clk
0:00:05.5]} 42. Kg2 {[%clk 0:00:03.2]} 42... Qxd5+ {[%clk 0:00:04]} 43. Kh3
{[%clk 0:00:04.1]} 43... Qxd1 {[%clk 0:00:03.4]} 44. d8=Q {[%clk 0:00:03.1]}
44... Qxd8 {[%clk 0:00:03.3]} 0-1